fUST/lending_fUST_20240503
["ID","MTS","AMOUNT","RATE_DAILY","PERIOD"]
[325360983,1714751368283,-1378.68043058,0.0002091,2]
[325360984,1714751368303,-379.86860564,0.0002091,4]
[325360985,1714751368323,-1772.1,0.0002091,2]
[325360986,1714751368343,-9139.68445779,0.00020912,2]
[325360987,1714751369295,-35010.98607346,0.00020912,2]
[325360988,1714751369316,-208.20456321,0.00020912,2]
[325360989,1714751369336,-2590.79776208,0.00020912,2]
[325360990,1714751369356,-155.41220515,0.00020912,2]
[325360991,1714751369376,-496.7265224,0.00020912,2]
[325360992,1714751369396,-174.04627683,0.00020912,2]
[325360993,1714751369416,-487.3055021,0.00020912,2]
[325360994,1714751369436,-10686.94724019,0.00020913,2]
[325360995,1714751369457,-155.59206037,0.00020913,2]
[325360996,1714751369479,-109604.76882059,0.00020913,2]
[325360997,1714751369497,-173.26781228,0.00020913,2]
[325360998,1714751369517,-166.666666,0.00021918,2]
[325360999,1714751369539,-9464.357141,0.00021918,2]
[325361000,1714751369560,-447.34773706,0.00022091,2]
[325361001,1714751369580,-166.666666,0.00022431,2]
[325361002,1714751369604,-166.666666,0.00022944,2]
[325361003,1714751369624,-781.3771752,0.00022957,2]
[325361004,1714751369645,-347.03042653,0.00023,2]
[325361005,1714751369670,-154.65974855,0.00023,2]
[325361006,1714751369690,-447.34773706,0.0002337,2]
[325361007,1714751369712,-166.666666,0.00023456,2]
[325361008,1714751369731,-150.0,0.000239,2]
[325361009,1714751369750,-166.666666,0.00023969,2]
[325361010,1714751369770,-166.666666,0.00024482,2]
[325361011,1714751369789,-55555.0,0.00024557,3]
[325361012,1714751369810,-447.34773706,0.00024648,2]
[325361013,1714751369829,-500.0,0.00024657,2]
[325361014,1714751369850,-500.0,0.00024657,2]
[325361015,1714751369875,-500.0,0.00024657,2]
[325361016,1714751369896,-500.0,0.00024657,2]
[325361017,1714751369916,-500.0,0.00024657,2]
[325361018,1714751369936,-500.0,0.00024657,2]
[325361019,1714751369956,-508.86999078,0.00024657,2]
[325361020,1714751369978,-312.55165589,0.00024657,2]
[325361021,1714751369999,-500.0,0.00024657,2]
[325361022,1714751370020,-519.10648597,0.00024657,2]
[325361023,1714751370040,-502.73308594,0.00024657,2]
[325361024,1714751370061,-500.0,0.00024657,2]
[325361025,1714751370082,-500.0,0.00024657,2]
[325361026,1714751370102,-579.02,0.00024657,2]
[325361027,1714751370123,-5499.68,0.00024657,2]
[325361028,1714751370144,-6094.12,0.00024657,2]
[325361029,1714751370166,-500.0,0.00024657,2]
[325361030,1714751370187,-500.0,0.00024657,2]
[325361031,1714751370208,-500.0,0.00024657,2]
[325361032,1714751370236,-500.0,0.00024657,2]
[325361033,1714751370257,-500.0,0.00024657,2]
[325361034,1714751370282,-500.0,0.00024657,2]
[325361035,1714751370302,-500.0,0.00024657,2]
[325361036,1714751370323,-500.0,0.00024657,2]
[325361037,1714751370344,-500.0,0.00024657,2]
[325361038,1714751370364,-500.0,0.00024657,2]
[325361039,1714751370384,-4932.28,0.00024657,2]
[325361040,1714751370404,-500.0,0.00024657,2]
[325361041,1714751370423,-500.0,0.00024657,2]
[325361042,1714751370444,-500.0,0.00024657,2]
[325361043,1714751370465,-500.0,0.00024657,2]
[325361044,1714751370486,-500.0,0.00024657,2]
[325361045,1714751370509,-500.0,0.00024657,2]
[325361046,1714751370530,-536.55543762,0.00024657,2]
[325361047,1714751370550,-519.41797069,0.00024657,2]
[325361048,1714751370570,-500.0,0.00024657,2]
[325361049,1714751370590,-500.0,0.00024657,2]
[325361050,1714751370614,-1000.0,0.00024657,2]
[325361051,1714751370633,-500.0,0.00024657,2]
[325361052,1714751370656,-500.0,0.00024657,2]
[325361053,1714751370678,-502.81002937,0.00024657,2]
[325361054,1714751370822,-1392.9,0.00024657,2]
[325361055,1714751370844,-878.39,0.00024657,2]
[325361056,1714751370865,-548.63148782,0.00024657,2]
[325361057,1714751370886,-1110.86,0.00024657,2]
[325361058,1714751370906,-500.0,0.00024657,2]
[325361059,1714751370926,-500.0,0.00024657,2]
[325361060,1714751370947,-633.15,0.00024657,2]
[325361061,1714751370970,-6205.64,0.00024657,2]
[325361062,1714751370991,-8222.95,0.00024657,2]
[325361063,1714751371011,-505.68137421,0.00024657,2]
[325361064,1714751371033,-500.0,0.00024657,2]
[325361065,1714751371054,-500.0,0.00024657,2]
[325361066,1714751371075,-500.0,0.00024657,2]
[325361067,1714751371096,-856.7,0.00024657,2]
[325361068,1714751371117,-637.18,0.00024657,2]
[325361069,1714751371138,-500.0,0.00024657,2]
[325361070,1714751371159,-500.0,0.00024657,2]
[325361071,1714751371179,-500.0,0.00024657,2]
[325361072,1714751371198,-407.66180723,0.00024657,2]
[325361073,1714751371220,-500.0,0.00024657,2]
[325361074,1714751371240,-500.0,0.00024657,2]
[325361075,1714751371260,-663.53,0.00024657,2]
[325361076,1714751371281,-500.0,0.00024657,2]
[325361077,1714751371302,-500.0,0.00024657,2]
[325361078,1714751371322,-277.1235547,0.00024657,2]
[325361079,1714751371342,-4391.22,0.00024657,2]
[325361080,1714751371362,-500.0,0.00024657,2]
[325361081,1714751371381,-500.0,0.00024657,2]
[325361082,1714751371402,-500.0,0.00024657,2]
[325361083,1714751371422,-500.0,0.00024657,2]
[325361084,1714751371443,-500.0,0.00024657,2]
[325361085,1714751371462,-2520.5,0.00024657,2]
[325361086,1714751371483,-500.0,0.00024657,2]
[325361087,1714751371504,-1704.93,0.00024657,2]
[325361088,1714751371526,-1297.03,0.00024657,2]
[325361089,1714751371547,-8882.82,0.00024657,2]
[325361090,1714751371568,-500.0,0.00024657,2]
[325361091,1714751371588,-300.42292954,0.00024657,2]
[325361092,1714751371612,-500.0,0.00024657,2]
[325361093,1714751371632,-824.91,0.00024657,2]
[325361094,1714751371655,-500.0,0.00024657,2]
[325361095,1714751371675,-500.0,0.00024657,2]
[325361096,1714751371698,-500.0,0.00024657,2]
[325361097,1714751371719,-500.0,0.00024657,2]
[325361098,1714751371741,-500.0,0.00024657,2]
[325361099,1714751371763,-500.0,0.00024657,2]
[325361100,1714751371785,-500.0,0.00024657,2]
[325361101,1714751371806,-812.94,0.00024657,2]
[325361102,1714751371826,-36715.31,0.00024657,2]
[325361103,1714751371845,-500.0,0.00024657,2]
[325361104,1714751371864,-503.75,0.00024657,2]
[325361105,1714751371884,-2056.22,0.00024657,2]
[325361106,1714751371904,-500.0,0.00024657,2]
[325361107,1714751371924,-500.0,0.00024657,2]
[325361108,1714751371945,-1077.99,0.00024657,2]
[325361109,1714751371965,-814.09,0.00024657,2]
[325361110,1714751371986,-500.0,0.00024657,2]
[325361111,1714751372006,-500.0,0.00024657,2]
[325361112,1714751372027,-500.0,0.00024657,2]
[325361113,1714751372047,-500.0,0.00024657,2]
[325361114,1714751372068,-1755.17,0.00024657,2]
[325361115,1714751372090,-897.33,0.00024657,2]
[325361116,1714751372110,-500.0,0.00024657,2]
[325361117,1714751372131,-275.55536833,0.00024657,2]
[325361118,1714751372151,-500.0,0.00024657,2]
[325361119,1714751372172,-500.0,0.00024657,2]
[325361120,1714751372192,-500.0,0.00024657,2]
[325361121,1714751372213,-500.0,0.00024657,2]
[325361122,1714751372234,-500.0,0.00024657,2]
[325361123,1714751372254,-500.0,0.00024657,2]
[325361124,1714751372277,-1707.7,0.00024657,2]
[325361125,1714751372297,-500.0,0.00024657,2]
[325361126,1714751372318,-500.0,0.00024657,2]
[325361127,1714751372338,-1778.31,0.00024657,2]
[325361128,1714751372359,-500.0,0.00024657,2]
[325361129,1714751372379,-1311.13,0.00024657,2]
[325361130,1714751372400,-500.0,0.00024657,2]
[325361131,1714751372420,-500.0,0.00024657,2]
[325361132,1714751372441,-963.18,0.00024657,2]
[325361133,1714751372461,-500.0,0.00024657,2]
[325361134,1714751372480,-500.0,0.00024657,2]
[325361135,1714751372500,-10087.53,0.00024657,2]
[325361136,1714751372520,-500.0,0.00024931,2]
[325361137,1714751372541,-500.0,0.00024931,2]
[325361138,1714751372562,-500.0,0.00024931,2]
[325361139,1714751372587,-500.0,0.00024931,2]
[325361140,1714751372612,-500.0,0.00024931,2]
[325361141,1714751372633,-500.0,0.00024931,2]
[325361142,1714751372658,-500.0,0.00024931,2]
[325361143,1714751372680,-500.0,0.00024931,2]
[325361144,1714751372701,-500.0,0.00024931,2]
[325361145,1714751372723,-579.02,0.00024931,2]
[325361146,1714751372742,-5499.68,0.00024931,2]
[325361147,1714751372764,-6094.12,0.00024931,2]
[325361148,1714751372785,-509.7847969,0.00024931,2]
[325361149,1714751372805,-500.0,0.00024931,2]
[325361150,1714751372825,-500.0,0.00024931,2]
[325361151,1714751372844,-506.33471578,0.00024931,2]
[325361152,1714751372866,-500.0,0.00024931,2]
[325361153,1714751372886,-500.0,0.00024931,2]
[325361154,1714751372906,-500.0,0.00024931,2]
[325361155,1714751372928,-500.0,0.00024931,2]
[325361156,1714751372949,-4932.28,0.00024931,2]
[325361157,1714751373083,-502.74411352,0.00024931,2]
[325361158,1714751373104,-500.0,0.00024931,2]
[325361159,1714751373127,-500.0,0.00024931,2]
[325361160,1714751373148,-500.0,0.00024931,2]
[325361161,1714751373169,-1000.0,0.00024931,2]
[325361162,1714751373190,-500.0,0.00024931,2]
[325361163,1714751373211,-243.73484398,0.00024931,2]
[325361164,1714751373233,-284.54781461,0.00024931,2]
[325361196,1714751432626,-7877.46126103,0.00020911,2]
[325361197,1714751432635,-3052.77811249,0.00020912,2]
[325361198,1714751432644,-915.39129722,0.00020912,2]
[325361199,1714751432654,-154.65974855,0.00020913,2]
[325361200,1714751432664,-2625.94115674,0.00020913,2]
[325361201,1714751432673,-5807.75773021,0.00020913,2]
[325361202,1714751432683,-1078.72294783,0.00020913,2]
[325361203,1714751432693,-714.56650019,0.00023,2]
[325361204,1714751432702,-17780.56328264,0.00024657,5]
[325361205,1714751432712,-1252.62,0.00024657,2]
[325361206,1714751432721,-4521.25,0.00024657,2]
[325361207,1714751432730,-500.0,0.00024657,2]
[325361208,1714751432739,-5586.28,0.00024657,2]
[325361209,1714751432750,-515.3682102,0.00024657,2]
[325361210,1714751432759,-574.88624669,0.00024657,2]
[325361211,1714751432768,-606.77,0.00024657,2]
[325361212,1714751432777,-1419.87,0.00024657,2]
[325361213,1714751432786,-500.0,0.00024657,2]
[325361214,1714751432795,-342.53838962,0.00024657,2]
[325361215,1714751432804,-500.0,0.00024657,2]
[325361216,1714751432813,-500.0,0.00024657,2]
[325361217,1714751432822,-500.0,0.00024657,2]
[325361218,1714751432830,-7190.66,0.00024921,3]
[325361219,1714751432839,-12553.4,0.00024921,3]
[325361220,1714751432848,-1108.35218539,0.00024931,2]
[325361221,1714751432857,-6205.64,0.00024931,2]
[325361222,1714751432866,-8222.95,0.00024931,2]
[325361223,1714751432875,-500.0,0.00024931,2]
[325361224,1714751432884,-500.0,0.00024931,2]
[325361225,1714751432893,-500.0,0.00024931,2]
[325361226,1714751432901,-856.7,0.00024931,2]
[325361227,1714751432910,-637.18,0.00024931,2]
[325361228,1714751432919,-500.0,0.00024931,2]
[325361229,1714751432928,-500.0,0.00024931,2]
[325361230,1714751432937,-500.0,0.00024931,2]
[325361232,1714751432946,-500.0,0.00024931,2]
[325361233,1714751432955,-663.53,0.00024931,2]
[325361234,1714751432964,-500.0,0.00024931,2]
[325361236,1714751432974,-500.0,0.00024931,2]
[325361238,1714751432983,-4391.22,0.00024931,2]
[325361240,1714751432993,-500.0,0.00024931,2]
[325361242,1714751433004,-507.19453145,0.00024931,2]
[325361244,1714751433014,-500.0,0.00024931,2]
[325361246,1714751433023,-500.0,0.00024931,2]
[325361248,1714751433032,-500.0,0.00024931,2]
[325361250,1714751433042,-2520.5,0.00024931,2]
[325361252,1714751433051,-500.0,0.00024931,2]
[325361254,1714751433062,-1704.93,0.00024931,2]
[325361256,1714751433071,-1297.03,0.00024931,2]
[325361258,1714751433081,-8882.82,0.00024931,2]
[325361260,1714751433090,-500.0,0.00024931,2]
[325361262,1714751433099,-824.91,0.00024931,2]
[325361264,1714751433109,-500.0,0.00024931,2]
[325361266,1714751433118,-500.0,0.00024931,2]
[325361268,1714751433127,-500.0,0.00024931,2]
[325361270,1714751433137,-500.0,0.00024931,2]
[325361272,1714751433146,-812.94,0.00024931,2]
[325361273,1714751433156,-36715.31,0.00024931,2]
[325361275,1714751433164,-51.90289192,0.00024931,2]
[325361287,1714751433269,-448.09710808,0.00024931,2]
[325361289,1714751433279,-503.75,0.00024931,2]
[325361291,1714751433289,-2056.22,0.00024931,2]
[325361293,1714751433298,-1077.99,0.00024931,2]
[325361295,1714751433308,-814.09,0.00024931,2]
[325361297,1714751433317,-500.0,0.00024931,2]
[325361298,1714751433327,-500.0,0.00024931,2]
[325361300,1714751433336,-500.0,0.00024931,2]
[325361302,1714751433344,-1755.17,0.00024931,2]
[325361304,1714751433354,-897.33,0.00024931,2]
[325361306,1714751433362,-500.0,0.00024931,2]
[325361308,1714751433372,-500.0,0.00024931,2]
[325361310,1714751433381,-500.0,0.00024931,2]
[325361312,1714751433390,-500.0,0.00024931,2]
[325361314,1714751433400,-345.86695487,0.00024931,2]
[325361316,1714751433409,-1707.7,0.00024931,2]
[325361318,1714751433419,-500.0,0.00024931,2]
[325361320,1714751433428,-500.0,0.00024931,2]
[325361322,1714751433438,-1778.31,0.00024931,2]
[325361324,1714751433447,-500.0,0.00024931,2]
[325361326,1714751433456,-1311.13,0.00024931,2]
[325361328,1714751433465,-500.0,0.00024931,2]
[325361330,1714751433474,-963.18,0.00024931,2]
[325361332,1714751433483,-500.0,0.00024931,2]
[325361334,1714751433492,-10087.53,0.00024931,2]
[325361336,1714751433501,-642.63712618,0.00024931,2]
[325361683,1714751438784,-2102.35981509,0.00020911,2]
[325361684,1714751438793,-55555.0,0.00024557,3]
[325361685,1714751438803,-500.0,0.00024657,2]
[325361686,1714751438813,-500.0,0.00024657,2]
[325361687,1714751438823,-500.0,0.00024657,2]
[325361688,1714751438832,-166.26480342,0.00024831,2]
[325361689,1714751438842,-609.98287382,0.00024931,2]
[325361690,1714751438851,-4521.25,0.00024931,2]
[325361691,1714751438861,-500.0,0.00024931,2]
[325361692,1714751438871,-5586.28,0.00024931,2]
[325361693,1714751438881,-606.77,0.00024931,2]
[325361694,1714751438890,-1419.87,0.00024931,2]
[325361695,1714751438899,-154.65974855,0.00024931,2]
[325361696,1714751438908,-500.0,0.00024931,2]
[325361697,1714751438918,-500.0,0.00024931,2]
[325361698,1714751438928,-500.0,0.00024931,2]
[325361699,1714751438937,-500.0,0.00024931,2]
[325361700,1714751438946,-500.0,0.00024931,2]
[325361701,1714751438956,-500.0,0.00024931,2]
[325361702,1714751438965,-757.41261472,0.00025,2]
[325361703,1714751438975,-10461.17,0.00025195,3]
[325361704,1714751438985,-500.0,0.00025205,2]
[325361705,1714751438994,-500.0,0.00025205,2]
[325361706,1714751439004,-176.55763516,0.00025205,2]
[325361707,1714751439017,-500.0,0.00025205,2]
[325361708,1714751439025,-500.0,0.00025205,2]
[325361709,1714751439035,-500.0,0.00025205,2]
[325361710,1714751439044,-500.0,0.00025205,2]
[325361711,1714751439053,-579.02,0.00025205,2]
[325361712,1714751439063,-500.0,0.00025205,2]
[325361713,1714751439072,-500.0,0.00025205,2]
[325361714,1714751439082,-500.0,0.00025205,2]
[325361715,1714751439092,-500.0,0.00025205,2]
[325361716,1714751439101,-500.0,0.00025205,2]
[325361717,1714751439110,-500.0,0.00025205,2]
[325361718,1714751439119,-500.0,0.00025205,2]
[325361719,1714751439129,-1000.0,0.00025205,2]
[325361720,1714751439139,-500.0,0.00025205,2]
[325361721,1714751439148,-1392.9,0.00025205,2]
[325361722,1714751439158,-6205.64,0.00025205,2]
[325361723,1714751439167,-8222.95,0.00025205,2]
[325361724,1714751439176,-500.0,0.00025205,2]
[325361725,1714751439186,-500.0,0.00025205,2]
[325361726,1714751439196,-856.7,0.00025205,2]
[325361727,1714751439205,-637.18,0.00025205,2]
[325361728,1714751439215,-177.74632215,0.00025205,2]
[325361729,1714751439225,-500.0,0.00025205,2]
[325361730,1714751439235,-500.0,0.00025205,2]
[325361731,1714751439244,-391.04608487,0.00025205,2]
[325361732,1714751439253,-663.53,0.00025205,2]
[325361733,1714751439267,-515.75478667,0.00025205,2]
[325361734,1714751439277,-500.0,0.00025205,2]
[325361735,1714751439286,-4391.22,0.00025205,2]
[325361736,1714751439296,-500.0,0.00025205,2]
[325361737,1714751439305,-500.0,0.00025205,2]
[325361738,1714751439314,-500.0,0.00025205,2]
[325361739,1714751439324,-500.0,0.00025205,2]
[325361740,1714751439333,-2520.5,0.00025205,2]
[325361741,1714751439343,-500.0,0.00025205,2]
[325361742,1714751439352,-1704.93,0.00025205,2]
[325361743,1714751439361,-1297.03,0.00025205,2]
[325361744,1714751439370,-8882.82,0.00025205,2]
[325361745,1714751439380,-500.0,0.00025205,2]
[325361746,1714751439389,-824.91,0.00025205,2]
[325361747,1714751439398,-500.0,0.00025205,2]
[325361748,1714751439408,-500.0,0.00025205,2]
[325361749,1714751439417,-812.94,0.00025205,2]
[325361750,1714751439427,-36715.31,0.00025205,2]
[325361751,1714751439438,-500.0,0.00025205,2]
[325361752,1714751439447,-503.75,0.00025205,2]
[325361753,1714751439457,-2056.22,0.00025205,2]
[325361754,1714751439466,-1077.99,0.00025205,2]
[325361755,1714751439475,-814.09,0.00025205,2]
[325361756,1714751439485,-500.0,0.00025205,2]
[325361757,1714751439494,-500.0,0.00025205,2]
[325361758,1714751439504,-500.0,0.00025205,2]
[325361759,1714751439515,-1755.17,0.00025205,2]
[325361760,1714751439524,-897.33,0.00025205,2]
[325361761,1714751439533,-391.1655493,0.00025205,2]
[325361762,1714751439542,-500.0,0.00025205,2]
[325361763,1714751439552,-500.0,0.00025205,2]
[325361764,1714751439561,-500.0,0.00025205,2]
[325361765,1714751439571,-1707.7,0.00025205,2]
[325361766,1714751439580,-500.0,0.00025205,2]
[325361767,1714751439589,-500.0,0.00025205,2]
[325361768,1714751439599,-1778.31,0.00025205,2]
[325361769,1714751439608,-500.0,0.00025205,2]
[325361770,1714751439621,-1311.13,0.00025205,2]
[325361771,1714751439630,-500.0,0.00025205,2]
[325361772,1714751439640,-963.18,0.00025205,2]
[325361773,1714751439649,-500.0,0.00025205,2]
[325361774,1714751439659,-10087.53,0.00025205,2]
[325361775,1714751439669,-1252.62,0.00025205,2]
[325361776,1714751439679,-4521.25,0.00025205,2]
[325361777,1714751439688,-500.0,0.00025205,2]
[325361778,1714751439697,-5586.28,0.00025205,2]
[325361779,1714751439707,-606.77,0.00025205,2]
[325361780,1714751439717,-1419.87,0.00025205,2]
[325361781,1714751439726,-500.0,0.00025205,2]
[325361782,1714751439736,-500.0,0.00025205,2]
[325361783,1714751439746,-500.0,0.00025205,2]
[325361784,1714751439756,-500.0,0.00025205,2]
[325361785,1714751439767,-500.0,0.00025205,2]
[325361786,1714751439777,-500.0,0.00025479,2]
[325361787,1714751439786,-500.0,0.00025479,2]
[325361789,1714751439797,-500.0,0.00025479,2]
[325361791,1714751439806,-500.0,0.00025479,2]
[325361793,1714751439815,-500.0,0.00025479,2]
[325361795,1714751439825,-500.0,0.00025479,2]
[325361797,1714751439835,-579.02,0.00025479,2]
[325361799,1714751439845,-500.0,0.00025479,2]
[325361801,1714751439854,-500.0,0.00025479,2]
[325361803,1714751439863,-500.0,0.00025479,2]
[325361805,1714751439873,-500.0,0.00025479,2]
[325361807,1714751439882,-500.0,0.00025479,2]
[325361809,1714751439891,-500.0,0.00025479,2]
[325361811,1714751439902,-500.0,0.00025479,2]
[325361813,1714751439911,-1000.0,0.00025479,2]
[325361815,1714751439921,-530.40491,0.00025479,2]
[325361817,1714751439930,-1392.9,0.00025479,2]
[325361819,1714751439939,-6205.64,0.00025479,2]
[325361821,1714751439949,-8222.95,0.00025479,2]
[325361823,1714751439958,-500.0,0.00025479,2]
[325361825,1714751439967,-500.0,0.00025479,2]
[325361827,1714751439976,-856.7,0.00025479,2]
[325361829,1714751439986,-637.18,0.00025479,2]
[325361831,1714751439995,-245.19202447,0.00025479,2]
[325361833,1714751440004,-500.0,0.00025479,2]
[325361835,1714751440016,-663.53,0.00025479,2]
[325361836,1714751440025,-500.0,0.00025479,2]
[325361838,1714751440036,-4391.22,0.00025479,2]
[325361840,1714751440046,-500.0,0.00025479,2]
[325361842,1714751440055,-500.0,0.00025479,2]
[325361844,1714751440065,-500.0,0.00025479,2]
[325361846,1714751440075,-500.0,0.00025479,2]
[325361848,1714751440086,-2520.5,0.00025479,2]
[325361850,1714751440096,-500.0,0.00025479,2]
[325361852,1714751440105,-1704.93,0.00025479,2]
[325361854,1714751440115,-1297.03,0.00025479,2]
[325361856,1714751440123,-8882.82,0.00025479,2]
[325361858,1714751440133,-500.0,0.00025479,2]
[325361859,1714751440142,-824.91,0.00025479,2]
[325361861,1714751440151,-500.0,0.00025479,2]
[325361863,1714751440160,-500.0,0.00025479,2]
[325361865,1714751440170,-812.94,0.00025479,2]
[325361867,1714751440180,-36715.31,0.00025479,2]
[325361868,1714751440190,-500.0,0.00025479,2]
[325361870,1714751440199,-503.75,0.00025479,2]
[325361872,1714751440209,-2056.22,0.00025479,2]
[325361874,1714751440219,-1077.99,0.00025479,2]
[325361876,1714751440228,-814.09,0.00025479,2]
[325361878,1714751440237,-515.22935238,0.00025479,2]
[325361879,1714751440247,-500.0,0.00025479,2]
[325361881,1714751440256,-500.0,0.00025479,2]
[325361883,1714751440268,-1755.17,0.00025479,2]
[325361885,1714751440279,-897.33,0.00025479,2]
[325361887,1714751440290,-500.0,0.00025479,2]
[325361889,1714751440300,-500.0,0.00025479,2]
[325361891,1714751440310,-500.0,0.00025479,2]
[325361893,1714751440320,-1707.7,0.00025479,2]
[325361895,1714751440330,-500.0,0.00025479,2]
[325361897,1714751440339,-500.0,0.00025479,2]
[325361899,1714751440349,-1778.31,0.00025479,2]
[325361901,1714751440358,-500.0,0.00025479,2]
[325361903,1714751440368,-1311.13,0.00025479,2]
[325361905,1714751440377,-500.0,0.00025479,2]
[325361907,1714751440387,-963.18,0.00025479,2]
[325361909,1714751440396,-500.0,0.00025479,2]
[325361911,1714751440406,-10087.53,0.00025479,2]
[325361913,1714751440415,-1252.62,0.00025479,2]
[325361915,1714751440424,-4521.25,0.00025479,2]
[325361917,1714751440434,-500.0,0.00025479,2]
[325361919,1714751440443,-5586.28,0.00025479,2]
[325361921,1714751440453,-606.77,0.00025479,2]
[325361923,1714751440462,-1419.87,0.00025479,2]
[325361924,1714751440472,-500.0,0.00025479,2]
[325361926,1714751440482,-500.0,0.00025479,2]
[325361928,1714751440491,-500.0,0.00025479,2]
[325361930,1714751440500,-500.0,0.00025479,2]
[325361932,1714751440509,-500.0,0.00025479,2]
[325361934,1714751440521,-500.0,0.00025753,2]
[325361936,1714751440530,-563.45046558,0.00025753,2]
[325361938,1714751440539,-500.0,0.00025753,2]
[325361940,1714751440548,-500.0,0.00025753,2]
[325361942,1714751440558,-500.0,0.00025753,2]
[325361944,1714751440567,-500.0,0.00025753,2]
[325361946,1714751440577,-579.02,0.00025753,2]
[325361948,1714751440586,-500.0,0.00025753,2]
[325361949,1714751440595,-500.0,0.00025753,2]
[325361950,1714751440604,-500.0,0.00025753,2]
[325361951,1714751440613,-500.0,0.00025753,2]
[325361952,1714751440622,-500.0,0.00025753,2]
[325361953,1714751440635,-500.0,0.00025753,2]
[325361954,1714751440644,-500.0,0.00025753,2]
[325361955,1714751440653,-1000.0,0.00025753,2]
[325361956,1714751440662,-1392.9,0.00025753,2]
[325361957,1714751440674,-6205.64,0.00025753,2]
[325361958,1714751440683,-8222.95,0.00025753,2]
[325361959,1714751440693,-500.0,0.00025753,2]
[325361960,1714751440703,-500.0,0.00025753,2]
[325361962,1714751440922,-856.7,0.00025753,2]
[325361963,1714751440931,-637.18,0.00025753,2]
[325361964,1714751440940,-500.0,0.00025753,2]
[325361966,1714751440949,-663.53,0.00025753,2]
[325361968,1714751440959,-500.0,0.00025753,2]
[325361970,1714751440969,-4391.22,0.00025753,2]
[325361972,1714751440978,-500.0,0.00025753,2]
[325361974,1714751440988,-500.0,0.00025753,2]
[325361976,1714751440997,-509.79341792,0.00025753,2]
[325361978,1714751441007,-500.0,0.00025753,2]
[325361980,1714751441017,-2520.5,0.00025753,2]
[325361982,1714751441026,-500.0,0.00025753,2]
[325361983,1714751441035,-1704.93,0.00025753,2]
[325361984,1714751441045,-1297.03,0.00025753,2]
[325361985,1714751441053,-8882.82,0.00025753,2]
[325361986,1714751441062,-500.0,0.00025753,2]
[325361987,1714751441072,-824.91,0.00025753,2]
[325361988,1714751441081,-500.0,0.00025753,2]
[325361989,1714751441091,-500.0,0.00025753,2]
[325361990,1714751441228,-812.94,0.00025753,2]
[325361991,1714751441239,-36715.31,0.00025753,2]
[325361992,1714751441248,-500.0,0.00025753,2]
[325361993,1714751441258,-503.75,0.00025753,2]
[325361994,1714751441269,-2056.22,0.00025753,2]
[325361995,1714751441278,-1077.99,0.00025753,2]
[325361996,1714751441288,-814.09,0.00025753,2]
[325361997,1714751441297,-500.0,0.00025753,2]
[325361998,1714751441306,-500.0,0.00025753,2]
[325361999,1714751441316,-1755.17,0.00025753,2]
[325362000,1714751441326,-897.33,0.00025753,2]
[325362001,1714751441335,-500.0,0.00025753,2]
[325362002,1714751441344,-500.0,0.00025753,2]
[325362003,1714751441354,-500.0,0.00025753,2]